Cogmind - Beta 13 @@@ ROGUE MODE // 2024.04.09 @ 16:17:35 Player: Calliope Result: Destroyed by S-27 Virus with Autogun Performance ------------- Evolutions (4) 2000 Regions Visited (7) 1400 Robots Destroyed (76) 380 Value Destroyed (2278) 2278 Prototype IDs (2) 40 Alien Tech Used (0) 0 Bonus (-499) -499 TOTAL SCORE: 5599 Bonus ------- Follower Combat Kills 68 Friendly Fire -567 Cogmind --------- Core Integrity 0/850 Matter 300/300 Energy 100/100 System Corruption 2% Temperature Cool (9) Movement Core (50) Location -6/Lower Caves Parts ------- > --- POWER (1) -------- (None) > --- PROPULSION (4) --- (None) > --- UTILITY (8) ------ Advanced Visual Processing Unit Improved Signal Interpreter Improved Terrain Scan Processor Advanced Terrain Scan Processor > --- WEAPON (2) ------- (None) > --- INVENTORY (5) ---- Micro Nuclear Core Kinecellerator Heavy Flak Cannon Improved Grenade Launcher Remote Datajack Peak State ------------ > --- POWER ------------ Micro Nuclear Core > --- PROPULSION ------- Xenon Bombardment Thruster Xenon Bombardment Thruster Xenon Bombardment Thruster > --- UTILITY ---------- Machine Analyzer Advanced Visual Processing Unit Improved Sensor Array Improved Signal Interpreter Improved Terrain Scan Processor Advanced Terrain Scan Processor ECM Suite Hacking Suite > --- WEAPON ----------- Greatsword > --- INVENTORY -------- Micro Nuclear Core Kinecellerator Heavy Flak Cannon Improved Grenade Launcher Remote Datajack [Rating: 49] Favorites ----------- Power Ion Engine Engine Ion Engine Power Core Light Nuclear Core Propulsion Light Treads Treads Light Treads Leg Aluminum Leg Hover Unit Airjet Flight Unit Xenon Bombardment Thruster Utility Improved Targeting Computer Device Experimental Sensor Array Storage Small Storage Unit Processor Improved Targeting Computer Hackware Hacking Suite Protection Light Armor Plating Weapon Light Assault Rifle Energy Gun Lightning Gun Ballistic Gun Light Assault Rifle Ballistic Cannon Assault Cannon Launcher Rocket Launcher Special Weapon Remote Datajack Impact Weapon Great Maul Slashing Weapon Blade Saw Build | -11 -10 -10 -10 -8 -7 -6 -6 ------- Run | Yrd Mat Min Sub Mat Fac Fac Low Slots Evolved 8 | . . . . 4 2 2 . Power . | . . . . . . . . Propulsion 2 | . . . . 1 . 1 . Utility 6 | . . . . 3 2 1 . Weapon . | . . . . . . . . Parts Attached 89 | 7 3 5 10 48 14 2 . Power 12 | 1 1 . 2 6 2 . . Engine 6 | 1 1 . 2 2 . . . Core 6 | . . . . 4 2 . . Reactor . | . . . . . . . . Propulsion 18 | 2 . . 3 9 4 . . Treads 7 | 2 . . 1 4 . . . Leg 2 | . . . 2 . . . . Wheel . | . . . . . . . . Hover 4 | . . . . 3 1 . . Flight 5 | . . . . 2 3 . . Utility 28 | 1 2 2 2 14 6 1 . Device 12 | . . 2 2 4 3 1 . Storage 1 | 1 . . . . . . . Processor 9 | . . . . 6 3 . . Hackware 2 | . . . . 2 . . . Protection 4 | . 2 . . 2 . . . Artifact . | . . . . . . . . Weapon 31 | 3 . 3 3 19 2 1 . Energy Gun 3 | 1 . . . 2 . . . Energy Cannon . | . . . . . . . . Ballistic Gun 11 | 2 . 1 2 5 1 . . Ballistic Cannon 3 | . . . . 3 . . . Launcher 5 | . . 2 1 2 . . . Special Weapon 2 | . . . . 2 . . . Impact Weapon 3 | . . . . 2 1 . . Slashing Weapon 4 | . . . . 3 . 1 . Piercing Weapon . | . . . . . . . . Special Melee Weapon . | . . . . . . . . Unidentified Prototypes 2 | . . 1 . 1 . . . Parts Lost 27 | . . 1 4 12 1 . 9 Power 4 | . . . 1 2 . . 1 Propulsion 12 | . . . 2 7 . . 3 Utility 7 | . . . . 2 1 . 4 Weapon 4 | . . 1 1 1 . . 1 Highest Loss Streak 9 | . . 1 2 3 1 . 9 To Critical Strikes . | . . . . . . . . Average Slot Usage (%) 90 | . 99 99 86 85 97 89 68 Engine 7 | . 14 14 13 3 . . . Core 3 | . . . . 5 7 6 5 Treads 17 | . 28 28 18 16 . . . Leg 1 | . . . 9 . . . . Hover 1 | . . . . . 15 . . Flight 2 | . . . . 1 7 20 13 Device 4 | . . 12 1 2 7 11 8 Storage 8 | . 14 14 14 6 . . . Processor 14 | . . . . 23 28 33 31 Hackware 4 | . . . . 6 14 6 4 Protection 2 | . 13 1 . 1 . . . Ballistic Gun 15 | . 28 20 14 12 6 4 . Launcher 3 | . . 7 14 . . . . Impact Weapon 1 | . . . . . 6 4 . Naked Turns . | . . . . . . . . Heaviest Build 23 | 11 16 16 19 23 18 16 14 Greatest Support 60 | 40 40 40 40 60 24 18 18 Greatest Overweight (x) 6 | . . . . 6 4 . 1 Average Overweight (x) . | . . . . . . . . Largest Inventory Capacity 8 | 8 8 8 8 8 5 5 5 Average Capacity 7 | 6 8 8 8 7 5 5 5 Most Carried 8 | 6 8 8 8 8 5 5 5 Average Carried 6 | 3 7 7 7 6 4 4 5 Final Capacity 8 | 8 8 8 8 5 5 5 5 Final Carried 8 | 6 8 8 8 5 4 5 5 Class Distribution -------------------- 68% | Mutant 9% | Hacker-Mutant 8% | Hacker-Scout 7% | Scavenger-Mutant Dominant Class ---------------- Mutant | -10/Materials Mutant | -10/Mines Mutant | -10/Subcaves Mutant | -8/Materials Hacker-Scout | -7/Factory Ninja | -6/Factory Ninja | -6/Lower Caves Resources | -11 -10 -10 -10 -8 -7 -6 -6 ----------- Run | Yrd Mat Min Sub Mat Fac Fac Low Matter Collected 2263 | 164 234 71 344 1235 195 20 . Remotely . | . . . . . . . . Salvage Created 2660 | . 238 35 296 1581 487 23 . Parts 141 | . 21 4 25 76 13 2 . Haulers Intercepted . | . . . . . . . . Recyclers Shooed 3 | . . . . . 3 . . Parts Field Recycled . | . . . . . . . . Retrieved Matter . | . . . . . . . . Parts Self-Destructed 18 | . . . 16 . . . 2 Prevented . | . . . . . . . . Kills | -11 -10 -10 -10 -8 -7 -6 -6 ------- Run | Yrd Mat Min Sub Mat Fac Fac Low Combat Hostiles Destroyed 56 | . 9 2 9 32 4 . . Melee 5 | . . . . 4 1 . . Guns 34 | . 9 2 1 21 1 . . Cannons 1 | . . . . 1 . . . AOE 12 | . . . 8 4 . . . Classes Destroyed 11 | . 4 . 1 5 1 . . Worker 4 | . 1 . . 2 1 . . Tunneler 1 | . . . . 1 . . . Recycler 5 | . . . . 2 3 . . Operator 3 | . 1 . . 2 . . . Watcher 4 | . . . . 3 . 1 . Swarmer 16 | . 6 2 . 7 1 . . Grunt 24 | . 3 . 2 18 1 . . Sentry 7 | . . . . 6 1 . . Hunter 1 | . . . . 1 . . . Programmer 2 | . . . . . 2 . . Subdweller 9 | . . . 9 . . . . Best Kill Streak 8 | . 4 2 3 8 3 1 . Combat Bots Only 4 | . 3 2 3 4 1 . . Max Kills in Single Turn 3 | . 1 1 1 3 1 1 . Gunslinging 1 | . . . . 1 . . . Exploded 1 | . . . 1 1 . . . Melee 1 | . . . . 1 1 . . Uniques/NPCs Destroyed . | . . . . . . . . Combat | -11 -10 -10 -10 -8 -7 -6 -6 -------- Run | Yrd Mat Min Sub Mat Fac Fac Low Hostile Shots Fired 425 | . 61 23 20 170 42 . 109 Missed 120 | . 17 4 5 50 15 . 29 Damage Taken 4713 | . 431 154 607 1863 384 18 1256 Core 1723 | . 51 16 161 514 127 . 854 Absorbed by Shields . | . . . . . . . . Regen/Repaired (Parts) 55 | . . . . . 55 . . Core Remaining (%) 48 | 100 . . 8 6 81 . . Volleys Fired 189 | . 29 13 28 109 10 . . Largest 2 | . 2 2 2 2 1 . . Hottest 88 | . 40 40 60 88 25 . . Shots Fired 314 | . 58 20 33 193 10 . . Gun 263 | . 58 16 12 167 10 . . Cannon 12 | . . . . 12 . . . Launcher 35 | . . 4 21 10 . . . Special 4 | . . . . 4 . . . Kinetic 259 | . 58 16 12 163 10 . . Thermal . | . . . . . . . . Explosive 35 | . . 4 21 10 . . . Electromagnetic 16 | . . . . 16 . . . Robot Hit Streak 31 | . 12 2 4 31 7 . . Robot Miss Streak 5 | . 3 4 2 5 1 . . Penetration Max . | . . . . . . . . Secondary Targets 5 | . 2 1 . 2 . . . Max Gunslinging Chain 1 | . 1 1 . 1 . . . Shots Hit Robots 245 | . 37 5 16 158 27 2 . Core Hits 114 | . 18 2 17 73 3 1 . Critical Kills . | . . . . . . . . Critical Parts Destroyed 5 | . . . . 1 4 . . Critical Strikes 7 | . . . . 3 4 . . Smash 5 | . . . . 1 4 . . Sever 2 | . . . . 2 . . . Melee Attacks 126 | . . . . 41 70 10 5 Impact 95 | . . . . 22 70 3 . Slashing 31 | . . . . 19 . 7 5 Piercing . | . . . . . . . . Sneak Attacks 5 | . . . . 3 2 . . Combat Hostiles . | . . . . . . . . Follow-up Attacks . | . . . . . . . . Damage Inflicted 6018 | . 394 46 896 3517 1041 124 . Guns 2765 | . 391 46 86 2071 171 . . Cannons 209 | . . . . 209 . . . Explosions 1494 | . . . 808 686 . . . Melee 1534 | . . . . 540 870 124 . Ramming 16 | . 3 . 2 11 . . . Kinetic 2694 | . 391 46 86 2000 171 . . Thermal . | . . . . . . . . Explosive 1494 | . . . 808 686 . . . Electromagnetic 280 | . . . . 280 . . . Impact 1163 | . . . . 293 870 . . Slashing 371 | . . . . 247 . 124 . Piercing . | . . . . . . . . Highest Corruption 6 | . . . . 2 6 2 2 Average Corruption 2 | . . . . 2 4 1 2 Corruption Purged . | . . . . . . . . Corruption Blocked . | . . . . . . . . Effects 27 | . . . . 14 13 . . Message Errors 10 | . . . . 3 7 . . Matter Fused 3 | . . . . 2 1 . . Heat Flow Errors 3 | . . . . 2 1 . . Energy Discharges 4 | . . . . 3 1 . . Parts Fused 1 | . . . . . 1 . . Data Loss (minor) 3 | . . . . 2 1 . . Data Loss (major) 2 | . . . . 1 1 . . Alerts 1 | . . . . 1 . . . Overload Shots . | . . . . . . . . Overflow Damage 573 | . . . . 194 353 26 . Projectiles 17 | . . . . 17 . . . Explosions 27 | . . . . 27 . . . Melee 529 | . . . . 150 353 26 . Knockbacks 7 | . . . . 6 1 . . Impact 3 | . . . . 2 1 . . Kinetic 4 | . . . . 4 . . . Secondary . | . . . . . . . . Self-Inflicted Damage 281 | . . 4 135 142 . . . Shots 8 | . . 1 5 2 . . . Rammed 2 | . 1 . . 1 . . . Targets Rammed 3 | . 1 . 1 1 . . . Kicked 1 | . . . 1 . . . . Crushed . | . . . . . . . . Highest Temperature 248 | . 44 . . 248 200 . . Average Temperature 34 | . 9 . . 40 55 . . Received Heat Transfer 1278 | . 126 . 75 747 141 . 189 Siege Activations . | . . . . . . . . Robots Corrupted 2 | . . . . 2 . . . Combat Hostiles 2 | . . . . 2 . . . Parts Fried 13 | . . . . 5 8 . . Impact Corruptions 20 | . . . . 6 14 . . Robots Melted . | . . . . . . . . Combat Hostiles . | . . . . . . . . Parts Melted 1 | . . . 1 . . . . Heat Transferred . | . . . . . . . . Parts Sabotaged . | . . . . . . . . Parts Stolen . | . . . . . . . . Parts Stripped . | . . . . . . . . Power Chain Reactions . | . . . . . . . . Alert | -11 -10 -10 -10 -8 -7 -6 -6 ------- Run | Yrd Mat Min Sub Mat Fac Fac Low Peak Influence 360 | . 245 135 . 360 177 189 . Initial 163 | . . 95 . . 163 42 . Average 63 | . 33 40 . 69 105 95 . Maximum Alert Level 1 | . 1 . . 1 . . . Low Security (%) 94 | 100 94 100 . 90 100 100 . Level 1 5 | . 5 . . 9 . . . Level 2 . | . . . . . . . . Level 3 . | . . . . . . . . Level 4 . | . . . . . . . . Level 5 . | . . . . . . . . High Security . | . . . . . . . . Max Security . | . . . . . . . . Squads Dispatched 11 | . 1 . . 6 3 1 . Investigation 3 | . . . . 2 . 1 . Extermination 2 | . . . . . 2 . . Reinforcement 4 | . 1 . . 3 . . . Assault . | . . . . . . . . Garrison 2 | . . . . 1 1 . . Intercept . | . . . . . . . . Searches Triggered . | . . . . . . . . Construction Impeded . | . . . . . . . . Haulers Reinforced . | . . . . . . . . Active Scanning Responses . | . . . . . . . . Cargo Convoy Interrupts . | . . . . . . . . Stealth | -11 -10 -10 -10 -8 -7 -6 -6 --------- Run | Yrd Mat Min Sub Mat Fac Fac Low Distress Signals 1 | . . . . . 1 . . Communications Jammed . | . . . . . . . . Distress Signals . | . . . . . . . . Times Spotted 107 | . 11 3 9 60 9 1 14 Peak Tracking Total 10 | . 3 3 2 5 3 1 10 Tactical Retreats 7 | . . . . 5 1 . 1 Traps | -11 -10 -10 -10 -8 -7 -6 -6 ------- Run | Yrd Mat Min Sub Mat Fac Fac Low Traps Triggered 5 | . . . . 2 2 1 . Indirectly . | . . . . . . . . Trap Hack Attempts . | . . . . . . . . Triggered . | . . . . . . . . Disarmed . | . . . . . . . . Reprogrammed . | . . . . . . . . Reused . | . . . . . . . . Traps Extracted . | . . . . . . . . Installed . | . . . . . . . . Triggered 1 | . . . . . . . 1 Machines | -11 -10 -10 -10 -8 -7 -6 -6 ---------- Run | Yrd Mat Min Sub Mat Fac Fac Low Machines Disabled 5 | . . . . 4 1 . . Max in Single Turn 2 | . . . . 2 1 . . Garrison Access 1 | . . . . 1 . . . Machines Repaired . | . . . . . . . . Machines Dismantled . | . . . . . . . . Machines Sabotaged . | . . . . . . . . Overloaded Fab Kills . | . . . . . . . . Hacking | -11 -10 -10 -10 -8 -7 -6 -6 --------- Run | Yrd Mat Min Sub Mat Fac Fac Low Machines Accessed 19 | . 1 . . 9 4 5 . Terminals 10 | . 1 . . 5 2 2 . Fabricators 4 | . . . . . 1 3 . Repair Stations 2 | . . . . 1 1 . . Recycling Units 2 | . . . . 2 . . . Scanalyzers . | . . . . . . . . Garrison Access 1 | . . . . 1 . . . Total Hacks 41 | . 3 . . 22 9 7 . Successful 20 | . . . . 11 6 3 . Failed 21 | . 3 . . 11 3 4 . Catastrophic 4 | . 1 . . 2 1 . . Database Lockouts . | . . . . . . . . Manual 18 | . 3 . . 12 1 2 . Terminals 24 | . 3 . . 16 3 2 . Fabricators 8 | . . . . . 3 5 . Repair Stations 5 | . . . . 2 3 . . Recycling Units 2 | . . . . 2 . . . Scanalyzers . | . . . . . . . . Garrison Access 2 | . . . . 2 . . . Terminal Hacks 10 | . . . . 7 2 1 . Record 4 | . . . . 2 1 1 . Open DSF 1 | . . . . . 1 . . Unreport Threat 3 | . . . . 3 . . . Zone Layout 2 | . . . . 2 . . . Fabricator Hacks 4 | . . . . . 2 2 . Network Status 2 | . . . . . 1 1 . Build 2 | . . . . . 1 1 . Repair Station Hacks 2 | . . . . . 2 . . Scan Component 1 | . . . . . 1 . . Repair 1 | . . . . . 1 . . Recycling Unit Hacks 2 | . . . . 2 . . . Report Inventory 2 | . . . . 2 . . . Scanalyzer . | . . . . . . . . Garrison Access Hacks 1 | . . . . 1 . . . Seal Access 1 | . . . . 1 . . . Unauthorized Hacks 1 | . . . . 1 . . . Terminals 1 | . . . . 1 . . . Botnet 1 | . . . . 1 . . . Fabricators . | . . . . . . . . Repair Stations . | . . . . . . . . Recycling Units . | . . . . . . . . Scanalyzers . | . . . . . . . . Garrison Access . | . . . . . . . . Data Cores Recovered . | . . . . . . . . Used . | . . . . . . . . Hacking Detections 14 | . 1 . . 7 4 2 . Full Trace Events 3 | . 1 . . 1 . 1 . Feedback Events 1 | . . . . . . 1 . Corruption 1 | . . . . . . 1 . Feedback Blocked . | . . . . . . . . Robot Schematics Acquired . | . . . . . . . . Robots Built 4 | . . . . . 4 . . Authchips . | . . . . . . . . Time 134 | . . . . . 134 . . Total Robot Build Rating 16 | . . . . . 16 . . Part Schematics Acquired . | . . . . . . . . Parts Built 2 | . . . . . . 2 . Authchips . | . . . . . . . . Time 58 | . . . . . . 58 . Total Part Build Rating 14 | . . . . . . 14 . Parts Repaired 1 | . . . . . 1 . . Time 19 | . . . . . 19 . . Parts Recycled . | . . . . . . . . Recycled Matter . | . . . . . . . . Retrieved Matter . | . . . . . . . . Retrieved Components . | . . . . . . . . Parts Scanalyzed . | . . . . . . . . Part Schematics Acquired . | . . . . . . . . Parts Damaged . | . . . . . . . . Bothacking | -11 -10 -10 -10 -8 -7 -6 -6 ------------ Run | Yrd Mat Min Sub Mat Fac Fac Low Used RIF Installer . | . . . . . . . . Robots Hacked 3 | . . . . 3 . . . Non-combat 2 | . . . . 2 . . . Combat 1 | . . . . 1 . . . Robot Hacks Applied 4 | . . . . 4 . . . parse_system 2 | . . . . 2 . . . no_distress 1 | . . . . 1 . . . check_alert 1 | . . . . 1 . . . Relay Couplers Released . | . . . . . . . . Fabnet Peak Effective % . | . . . . . . . . Robots Rewired . | . . . . . . . . Allies Hacked . | . . . . . . . . Hacks Repelled . | . . . . . . . . Allies | -11 -10 -10 -10 -8 -7 -6 -6 -------- Run | Yrd Mat Min Sub Mat Fac Fac Low Total Allies 7 | . . 3 . . 4 . . Largest Group 4 | . . 3 3 . 4 . . Highest-Rated Group 48 | . . 40 40 . 48 . . Highest-Rated Ally 16 | . . 16 16 . 12 . . Total Orders 1 | . . . 1 . . . . ROAM 1 | . . . 1 . . . . Ally Attacks 29 | . . . 13 . 16 . . Total Damage 307 | . . . 144 . 163 . . Kills 2 | . . . 1 . 1 . . Allies Corrupted . | . . . . . . . . Allies Melted 1 | . . . . . 1 . . Intel | -11 -10 -10 -10 -8 -7 -6 -6 ------- Run | Yrd Mat Min Sub Mat Fac Fac Low Robot Analysis Total . | . . . . . . . . Derelict Logs Recovered 2 | . . 2 . . . . . Drone Launches . | . . . . . . . . Drone Recoveries . | . . . . . . . . Exploration | -11 -10 -10 -10 -8 -7 -6 -6 ------------- Run | Yrd Mat Min Sub Mat Fac Fac Low Turns Passed 8714 | 115 1191 1206 1162 3755 938 270 77 Spaces Moved 5260 | 65 289 698 737 2081 876 407 107 Core 252 | 9 . . . 242 1 . . Treads 2703 | 56 289 698 451 1209 . . . Legs 312 | . . . 286 26 . . . Wheels . | . . . . . . . . Hover 772 | . . . . 50 722 . . Flight 1221 | . . . . 554 153 407 107 Fastest Speed 32 | 50 160 160 120 32 34 34 34 Average Speed 115 | 144 160 160 144 131 49 34 34 Slowest Speed 350 | 160 160 160 160 350 250 34 120 Overloaded Moves . | . . . . . . . . Propulsion Burnouts . | . . . . . . . . Robots Hopped 1 | . . . . 1 . . . Cave-ins Triggered . | . . . . . . . . Exploration Rate (%) 35 | 5 40 98 17 75 16 10 20 Regions Visited 7 Branch Regions 3 Pre-discovered Areas 2 | . . 2 . . . . . Known Exits Taken 3 | . . . . 1 1 1 . Unknown Exits Taken 4 | 1 1 1 1 . . . . Scrap Searched 2 | . . 1 . . . . 1 Spaces Dug 97 | . . 28 . 16 45 5 3 Terrain Destroyed 332 | . . 28 116 135 45 5 3 Melee 69 | . . . . 16 45 5 3 Projectile 3 | . . . . 3 . . . AOE 260 | . . 28 116 116 . . . Terrain Rammed . | . . . . . . . . Walls Destroyed . | . . . . . . . . Machines Disabled . | . . . . . . . . Actions | -11 -10 -10 -10 -8 -7 -6 -6 --------- Run | Yrd Mat Min Sub Mat Fac Fac Low Total 7370 | 83 966 768 806 2862 1230 518 137 Wait 1595 | 6 637 49 14 519 250 95 25 Move 5251 | 64 288 697 736 2078 875 406 107 Hop 1 | . . . . 1 . . . Pick Up 43 | 6 4 1 7 22 2 1 . Fast Attach 46 | 6 2 3 2 21 10 2 . Attach 19 | . . . 6 12 1 . . Detach 18 | . . . 3 13 . 2 . Swap 24 | 1 1 2 2 15 3 . . Drop 55 | . 4 3 7 30 9 2 . Fire 189 | . 29 13 28 109 10 . . Melee 126 | . . . . 41 70 10 5 Ram . | . . . . . . . . Kick 1 | . . . 1 . . . . Crush 2 | . 1 . . 1 . . . Escape Stasis . | . . . . . . . . Rewire . | . . . . . . . . Trap . | . . . . . . . . Miscellaneous . | . . . . . . . . Route ------- -11/Scrapyard -10/Materials -10/Mines (discovered 3 exits: [*Mat x2] / [*Sub]) -10/Subcaves (discovered 2 exits: *Mat x2) -8/Materials -7/Factory -6/Factory -6/Lower Caves History --------- Turn | Location | Event 62 | -11/Scrapyard | Discovered new exit (range 15) 116 | -11/Scrapyard | Entered Materials 302 | -10/Materials | Build established: Mutant 1249 | -10/Materials | Discovered new exit (range 16) 1307 | -10/Materials | Entered Mines 1335 | -10/Mines | Discovered new exit (range 5) 1387 | -10/Mines | Found a damaged Exp. Sensor Array with a note attached 1394 | -10/Mines | Found Prototype Device 1394 | -10/Mines | Identified Exp. Sensor Array 1527 | -10/Mines | Discovered new exit (range 5) 1686 | -10/Mines | Learned location of Storage (-9) 1938 | -10/Mines | Discovered new exit (range 8) 1979 | -10/Mines | Received a Rocket Launcher from a helpful Derelict 2036 | -10/Mines | Learned Materials stockpile data 2136 | -10/Mines | Assisted by bots powering up and referring to "LRC-V3" 2513 | -10/Mines | Entered Subcaves 2513 | -10/Subcaves | Accompanied by 3 allies 2526 | -10/Subcaves | Discovered new exit (range 13) 2883 | -10/Subcaves | Discovered new exit (range 5) 3262 | -10/Subcaves | Ambushed by Subdweller buried in earth 3267 | -10/Subcaves | Core integrity fell below 50% 3595 | -10/Subcaves | Core integrity fell below 20% 3675 | -10/Subcaves | Entered Materials 3675 | -8/Materials | Evolved 4 slots: Propulsion x1, Utility x3 4562 | -8/Materials | Garrison activated, responded to threat 5033 | -8/Materials | Build established: Scavenger-Mutant 5697 | -8/Materials | Build established: Mutant 7050 | -8/Materials | Core integrity fell below 50% 7054 | -8/Materials | Core integrity fell below 20% 7084 | -8/Materials | Lost 3 parts (1p2n) 7319 | -8/Materials | Build established: Hacker-Mutant 7406 | -8/Materials | Discovered new exit (range 9) 7429 | -8/Materials | Identified exit to Factory 7430 | -8/Materials | Entered Factory 7430 | -7/Factory | Evolved 2 slots: Utility x2 7475 | -7/Factory | Repaired Minigun 7516 | -7/Factory | Identified exit to DSF 7827 | -7/Factory | Build established: Hacker-Scout 8209 | -7/Factory | Discovered new exit (range 16) 8252 | -7/Factory | Fabricated S-27 Virus? 8263 | -7/Factory | Garrison activated, responded to threat 8367 | -7/Factory | Identified exit to Factory 8368 | -7/Factory | Entered another Factory area 8368 | -6/Factory | Evolved 2 slots: Propulsion x1, Utility x1 8488 | -6/Factory | Fabricated Phase Gun? 8562 | -6/Factory | Discovered new exit (range 16) 8610 | -6/Factory | Identified exit to Lower Caves 8638 | -6/Factory | Entered Lower Caves 8639 | -6/Lower Caves | Encountered a Warlord checkpoint 8703 | -6/Lower Caves | Core integrity fell below 50% 8712 | -6/Lower Caves | Core integrity fell below 20% 8715 | -6/Lower Caves | Destroyed by S-27 Virus with Autogun Last Messages --------------- 08645_ Found Target Analyzer. 08645_ Found Med. Reactive Plating. 08645_ Found 15 Matter. 08667_ S-27 Virus springs to life. 08682_ Xenon Bombardment Thruster destroyed. 08683_ Imp. Sensor Array destroyed. 08684_ S-27 Virus destroyed. 08685_ Critical hit (Burn: +37). 08688_ VTOL Module fries itself beyond repair. 08689_ Greatsword destroyed. 08690_ Machine Analyzer destroyed. 08690_ Critical hit (Burn: +37). 08692_ Xenon Bombardment Thruster destroyed. 08696_ ECM Suite destroyed. 08699_ Hacking Suite destroyed. 08704_ Mic. Nuclear Core destroyed. 08709_ S-27 Virus destroyed. 08714_ VTOL Module fries itself beyond repair. [Achievement: 5k Club] Map ----- +----------------------------------------------------+ | ?????????????????????????????????????????????????? | | ?????????????????????????????????????????????????? | | ?????????????????????????????????????????????????? | | ?????????????????????????????????????????????????? | | ?????????????????????????????????????????????????? | | ?????????????????????????????????????????????????? | | ?????????????????????????????????????????????????? | | ?????????????????????????????????????????????????? | | ??????????????????????????????????####???????????? | | ?????????????????????????????????## #???????????? | | ?????????????????????????????????# ####????????? | | ?????????????????????????????????# ##???????? | | ?????????????????????????????????# #??????? | | ????????????????????????????????## #???? | | ?????????????????????????????#### #????? | | ????????????????????????????## ##????? | | ???????????????????????????## #?????? | | ???????????????????????????# #??????? | | ???????????????????????????# ## #### | | ????????????????????????????# | | ????????????????????????????### | | ????????????????????########??# ## #######++### | | ???????????????????## ##?# ### #" ???? | | ???????????????????# s ### ##?# #"" ????? | | ???????????????????# sgs ;##??# #" #?????? | | ????????????????????# @ggg ###?# #"" #?????? | | ????????????????????## ;## ## #" #?????? | | ?????????????????????###;#### # / #?????? | | ???????????????????????###??# / / "" | | ???????????????????????????## / / "" | | ??????????????????????????## / # "" | | ??????????????????????????# # #" #?$ | | ??????????????????????????#### # #"" #??? | | ?????????????????????????????# #" #?????" | | ?????????????????????????????# #"" ????? | | ?????????????????????????????# ## #" ???? | | ?????????????????????????????# ### #######++### | | ????????????????????????????# # | | ????????????????????????????# | | ????????????????????????????# ##### | | ????????????????????????????# ###?# | | ????????????????????????????# ### ##??# | | ?????????????????????????? #?# #???# | | ???????????????????????? ? #???## # | | ???????????????????????#########??# ????###### | | ??????????????????????????????????######?????????? | | ?????????????????????????????????????????????????? | | ?????????????????????????????????????????????????? | | ?????????????????????????????????????????????????? | | ?????????????????????????????????????????????????? | +----------------------------------------------------+ Best States ------------- Heat Dissipation 37 Energy Generation 15 Energy Capacity 275 Matter Stores 300 Matter Capacity 300 Sight Range 21 Robot Scan Range 20 Terrain Scan Density 310 ECM Strength 1 Armor Coverage 150 Melee Speed Boost 20 Evasion (%) 63 Targeting Accuracy 18 Recoil Reduction 3 Kinecelleration 30 Offensive Hacking 20 Item Schematics ----------------- None Robot Schematics ------------------ None Fabricated ------------ S-27 Virus | x4 | -7/Factory | Preloaded Phase Gun | x2 | -6/Factory | Preloaded Alien Tech Used ----------------- None Achievements -------------- 5k Club Backstab I Spy Just What I Needed My Command Is Your Wish Power Corrupts Tourist Challenges ------------ None Game ------ Seed InertialMassShockpuncher Manual? 0 Play Time 01:38:20 Cumulative 7.9 hours Start 2024.04.09 @ 14:13:20 End 2024.04.09 @ 16:17:35 Sessions 1 Manual Loads 0 Difficulty Rogue Special Mode None Game No. 18 Rogue 16 Adventurer 0 Explorer 2 Win Type - Total 0 Types 0/0/0/0/0/0/0/0/0 Lore% 4 Gallery% 12 Achievement% 16 Wizard Run 0 Options --------- Layout 2 ASCII 0 Keyboard 1 Movement Vi Keybinds 0 Fullscreen 2 Font 32/SmallcapsGlow Map View 50x44 Zoom Use 0% Tactical HUD 1 Map Filters NONE Filters NONE Steam 1 RUN: 0893e0f0-998b-4d7f-8e15-71e388111cf0